fUST/lending_fUST_20250719
["ID","MTS","AMOUNT","RATE_DAILY","PERIOD"]
[373175953,1752891041417,-1756.54,0.00016712,2]
[373175955,1752891041426,-460.0,0.00016712,2]
[373175957,1752891041436,-460.0,0.00016712,2]
[373175959,1752891041445,-567.08503556,0.00016712,2]
[373175961,1752891041455,-460.0,0.00016712,2]
[373175963,1752891041464,-460.0,0.00016712,2]
[373175965,1752891041474,-460.0,0.00016712,2]
[373175967,1752891041483,-1166.67,0.00016712,2]
[373175969,1752891041493,-460.0,0.00016712,2]
[373175971,1752891041502,-460.0,0.00016712,2]
[373175973,1752891041511,-460.0,0.00016712,2]
[373175975,1752891041520,-460.0,0.00016712,2]
[373175977,1752891041530,-1238.02,0.00016712,2]
[373175979,1752891041540,-460.0,0.00016712,2]
[373175981,1752891041550,-460.0,0.00016712,2]
[373175983,1752891041559,-460.0,0.00016712,2]
[373175985,1752891041568,-460.0,0.00016712,2]
[373175987,1752891041578,-460.0,0.00016712,2]
[373175989,1752891041588,-460.0,0.00016712,2]
[373175991,1752891041598,-975.58,0.00016712,2]
[373175993,1752891041607,-460.0,0.00016712,2]
[373175995,1752891041617,-684.43,0.00016712,2]
[373175997,1752891041626,-460.0,0.00016712,2]
[373175999,1752891041636,-460.0,0.00016712,2]
[373176001,1752891041646,-555.06778879,0.00016712,2]
[373176003,1752891041655,-460.0,0.00016712,2]
[373176005,1752891041666,-460.0,0.00016712,2]
[373176007,1752891041675,-460.0,0.00016712,2]
[373176009,1752891041686,-460.0,0.00016712,2]
[373176011,1752891041695,-463.54,0.00016712,2]
[373176013,1752891041705,-460.0,0.00016712,2]
[373176015,1752891041714,-460.0,0.00016712,2]
[373176017,1752891041723,-1345.1,0.00016712,2]
[373176019,1752891041733,-460.0,0.00016712,2]
[373176021,1752891041742,-1508.92,0.00016712,2]
[373176023,1752891041751,-460.0,0.00016712,2]
[373176025,1752891041760,-460.0,0.00016712,2]
[373176027,1752891041770,-509.17789306,0.00016712,2]
[373176029,1752891041779,-460.0,0.00016712,2]
[373176031,1752891041788,-460.0,0.00016712,2]
[373176032,1752891041797,-460.0,0.00016712,2]
[373176034,1752891041807,-1125.78,0.00016712,2]
[373176036,1752891041816,-1027.2,0.00016712,2]
[373176039,1752891041825,-460.0,0.00016712,2]
[373176041,1752891041835,-460.0,0.00016712,2]
[373176043,1752891041845,-460.0,0.00016712,2]
[373176045,1752891041854,-460.0,0.00016712,2]
[373176047,1752891041863,-460.0,0.00016712,2]
[373176049,1752891041873,-460.0,0.00016712,2]
[373176051,1752891041881,-460.0,0.00016712,2]
[373176053,1752891041891,-460.0,0.00016712,2]
[373176055,1752891041900,-460.0,0.00016712,2]
[373176057,1752891041909,-460.0,0.00016712,2]
[373176059,1752891041918,-460.0,0.00016712,2]
[373176061,1752891041927,-174.55806306,0.00016712,2]
[373176066,1752891041969,-3077.67,0.00016712,2]
[373176068,1752891041979,-285.85910986,0.00016712,2]
[373176069,1752891041990,-460.0,0.00016712,2]
[373176072,1752891042002,-660.48,0.00016712,2]
[373176074,1752891042013,-460.0,0.00016712,2]
[373176076,1752891042024,-460.0,0.00016712,2]
[373176078,1752891042033,-362.48,0.0001689,3]
[373176080,1752891042043,-2276.00727348,0.000169,2]
[373176082,1752891042052,-168.47,0.00016976,3]
[373176084,1752891042061,-460.0,0.00016986,2]
[373176086,1752891042071,-460.0,0.00016986,2]
[373176088,1752891042080,-460.0,0.00016986,2]
[373176090,1752891042091,-460.0,0.00016986,2]
[373176092,1752891042100,-460.0,0.00016986,2]
[373176094,1752891042111,-460.0,0.00016986,2]
[373176096,1752891042121,-460.0,0.00016986,2]
[373176098,1752891042131,-460.0,0.00016986,2]
[373176100,1752891042140,-460.0,0.00016986,2]
[373176102,1752891042150,-460.0,0.00016986,2]
[373176104,1752891042159,-251.96468072,0.00016986,2]
[373176106,1752891042169,-460.0,0.00016986,2]
[373176108,1752891042178,-287.14175686,0.00016986,2]
[373176110,1752891042188,-460.0,0.00016986,2]
[373176112,1752891042197,-460.0,0.00016986,2]
[373176114,1752891042208,-460.0,0.00016986,2]
[373176116,1752891042219,-460.0,0.00016986,2]
[373176118,1752891042229,-460.0,0.00016986,2]
[373176120,1752891042239,-460.0,0.00016986,2]
[373176122,1752891042249,-460.0,0.00016986,2]
[373176124,1752891042259,-179.94604781,0.00016986,2]
[373176127,1752891042268,-460.0,0.00016986,2]
[373176128,1752891042279,-460.0,0.00016986,2]
[373176131,1752891042290,-460.0,0.00016986,2]
[373176133,1752891042301,-460.0,0.00016986,2]
[373176134,1752891042310,-460.0,0.00016986,2]
[373176136,1752891042320,-460.0,0.00016986,2]
[373176138,1752891042329,-460.0,0.00016986,2]
[373176140,1752891042338,-460.0,0.00016986,2]
[373176142,1752891042348,-460.0,0.00016986,2]
[373176144,1752891042357,-460.0,0.00016986,2]
[373176146,1752891042367,-178.24103864,0.00016986,2]
[373176148,1752891042376,-460.0,0.00016986,2]
[373176150,1752891042385,-167.92809041,0.00016986,2]
[373176152,1752891042395,-460.0,0.00016986,2]
[373176155,1752891042405,-460.0,0.00016986,2]
[373176157,1752891042414,-460.0,0.00016986,2]
[373176158,1752891042423,-460.0,0.00016986,2]
[373176160,1752891042433,-418.3573526,0.00016986,2]
[373176162,1752891042443,-2770.43,0.00016986,2]
[373176164,1752891042452,-460.0,0.00016986,2]
[373176166,1752891042462,-1977.14,0.00016986,2]
[373176169,1752891042472,-460.0,0.00016986,2]
[373176171,1752891042481,-460.0,0.00016986,2]
[373176173,1752891042490,-460.0,0.00016986,2]
[373176175,1752891042499,-460.0,0.00016986,2]
[373176177,1752891042509,-1102.41,0.00016986,2]
[373176179,1752891042518,-533.53,0.00016986,2]
[373176181,1752891042527,-552.61,0.00016986,2]
[373176183,1752891042536,-460.0,0.00016986,2]
[373176185,1752891042545,-1676.17,0.00016986,2]
[373176187,1752891042554,-467.12,0.00016986,2]
[373176189,1752891042564,-460.0,0.00016986,2]
[373176191,1752891042573,-864.43,0.00016986,2]
[373176193,1752891042582,-460.0,0.00016986,2]
[373176195,1752891042591,-460.0,0.00016986,2]
[373176197,1752891042600,-482.5971525,0.00016986,2]
[373176199,1752891042609,-460.0,0.00016986,2]
[373176201,1752891042618,-460.0,0.00016986,2]
[373176203,1752891042627,-460.0,0.00016986,2]
[373176205,1752891042636,-1756.54,0.00016986,2]
[373176207,1752891042645,-460.0,0.00016986,2]
[373176209,1752891042655,-288.59685484,0.00016986,2]
[373176211,1752891042664,-460.0,0.00016986,2]
[373176213,1752891042673,-460.0,0.00016986,2]
[373176215,1752891042682,-1166.67,0.00016986,2]
[373176217,1752891042691,-460.0,0.00016986,2]
[373176219,1752891042700,-460.0,0.00016986,2]
[373176220,1752891042710,-460.0,0.00016986,2]
[373176222,1752891042719,-1238.02,0.00016986,2]
[373176225,1752891042729,-460.0,0.00016986,2]
[373176226,1752891042738,-587.4465944,0.00016986,2]
[373176229,1752891042748,-460.0,0.00016986,2]
[373176231,1752891042757,-460.0,0.00016986,2]
[373176233,1752891042767,-460.0,0.00016986,2]
[373176235,1752891042776,-460.0,0.00016986,2]
[373176236,1752891042785,-975.58,0.00016986,2]
[373176237,1752891042794,-542.63791258,0.00016986,2]
[373176239,1752891042804,-684.43,0.00016986,2]
[373176241,1752891042813,-460.0,0.00016986,2]
[373176243,1752891042822,-460.0,0.00016986,2]
[373176244,1752891042831,-460.0,0.00016986,2]
[373176246,1752891042841,-460.0,0.00016986,2]
[373176247,1752891042850,-460.0,0.00016986,2]
[373176249,1752891042860,-460.0,0.00016986,2]
[373176251,1752891042870,-463.54,0.00016986,2]
[373176253,1752891042879,-460.0,0.00016986,2]
[373176256,1752891042888,-460.0,0.00016986,2]
[373176257,1752891042897,-1345.1,0.00016986,2]
[373176258,1752891042906,-460.0,0.00016986,2]
[373176259,1752891042915,-1508.92,0.00016986,2]
[373176260,1752891042924,-460.0,0.00016986,2]
[373176261,1752891042934,-460.0,0.00016986,2]
[373176262,1752891042946,-460.0,0.00016986,2]
[373176263,1752891042955,-460.0,0.00016986,2]
[373176264,1752891042964,-460.0,0.00016986,2]
[373176265,1752891042973,-1125.78,0.00016986,2]
[373176266,1752891042985,-1027.2,0.00016986,2]
[373176267,1752891042994,-460.0,0.00016986,2]
[373176268,1752891043003,-460.0,0.00016986,2]
[373176269,1752891043013,-460.0,0.00016986,2]
[373176270,1752891043022,-460.0,0.00016986,2]
[373176271,1752891043033,-333.31433477,0.00016986,2]
[373176272,1752891043042,-460.0,0.00016986,2]
[373176273,1752891043052,-460.0,0.00016986,2]
[373176274,1752891043061,-460.0,0.00016986,2]
[373176275,1752891043071,-460.0,0.00016986,2]
[373176276,1752891043080,-460.0,0.00016986,2]
[373176277,1752891043090,-3077.67,0.00016986,2]
[373176278,1752891043099,-460.0,0.00016986,2]
[373176279,1752891043109,-660.48,0.00016986,2]
[373176280,1752891043119,-460.0,0.00016986,2]
[373176281,1752891043129,-8085.72158956,0.0001716,2]
[373176282,1752891043139,-873.27660244,0.00017178,2]
[373176283,1752891043149,-2276.00727322,0.0001721,2]
[373176284,1752891043159,-460.0,0.0001726,2]
[373176285,1752891043168,-460.0,0.0001726,2]
[373176286,1752891043177,-483.51288071,0.0001726,2]
[373176287,1752891043187,-460.0,0.0001726,2]
[373176288,1752891043198,-460.0,0.0001726,2]
[373176289,1752891043207,-460.0,0.0001726,2]
[373176290,1752891043217,-460.0,0.0001726,2]
[373176291,1752891043226,-460.0,0.0001726,2]
[373176292,1752891043236,-460.0,0.0001726,2]
[373176293,1752891043245,-460.0,0.0001726,2]
[373176294,1752891043255,-460.0,0.0001726,2]
[373176295,1752891043264,-460.0,0.0001726,2]
[373176296,1752891043274,-460.0,0.0001726,2]
[373176297,1752891043283,-460.0,0.0001726,2]
[373176298,1752891043293,-460.0,0.0001726,2]
[373176299,1752891043302,-460.0,0.0001726,2]
[373176300,1752891043311,-460.0,0.0001726,2]
[373176301,1752891043321,-460.0,0.0001726,2]
[373176302,1752891043330,-460.0,0.0001726,2]
[373176303,1752891043339,-460.0,0.0001726,2]
[373176304,1752891043349,-460.0,0.0001726,2]
[373176305,1752891043358,-158.85169442,0.0001726,2]
[373176306,1752891043368,-460.0,0.0001726,2]
[373176307,1752891043378,-460.0,0.0001726,2]
[373176308,1752891043387,-460.0,0.0001726,2]
[373176309,1752891043397,-460.0,0.0001726,2]
[373176310,1752891043406,-460.0,0.0001726,2]
[373176311,1752891043415,-460.0,0.0001726,2]
[373176312,1752891043424,-460.0,0.0001726,2]
[373176313,1752891043434,-460.0,0.0001726,2]
[373176314,1752891043444,-460.0,0.0001726,2]
[373176315,1752891043453,-460.0,0.0001726,2]
[373176316,1752891043463,-460.0,0.0001726,2]
[373176317,1752891043472,-2770.43,0.0001726,2]
[373176318,1752891043481,-460.0,0.0001726,2]
[373176319,1752891043491,-1977.14,0.0001726,2]
[373176320,1752891043501,-460.0,0.0001726,2]
[373176321,1752891043511,-460.0,0.0001726,2]
[373176322,1752891043521,-460.0,0.0001726,2]
[373176323,1752891043531,-1102.41,0.0001726,2]
[373176324,1752891043540,-460.0,0.0001726,2]
[373176325,1752891043550,-533.53,0.0001726,2]
[373176326,1752891043560,-552.61,0.0001726,2]
[373176327,1752891043569,-460.0,0.0001726,2]
[373176328,1752891043579,-1676.17,0.0001726,2]
[373176329,1752891043588,-467.12,0.0001726,2]
[373176330,1752891043597,-460.0,0.0001726,2]
[373176332,1752891043607,-864.43,0.0001726,2]
[373176333,1752891043617,-460.0,0.0001726,2]
[373176334,1752891043626,-460.0,0.0001726,2]
[373176335,1752891043635,-460.0,0.0001726,2]
[373176336,1752891043645,-460.0,0.0001726,2]
[373176337,1752891043655,-1756.54,0.0001726,2]
[373176339,1752891043665,-460.0,0.0001726,2]
[373176340,1752891043674,-460.0,0.0001726,2]
[373176341,1752891043684,-1166.67,0.0001726,2]
[373176342,1752891043694,-460.0,0.0001726,2]
[373176343,1752891043703,-460.0,0.0001726,2]
[373176344,1752891043712,-565.69590547,0.0001726,2]
[373176345,1752891043722,-1238.02,0.0001726,2]
[373176346,1752891043731,-460.0,0.0001726,2]
[373176347,1752891043741,-460.0,0.0001726,2]
[373176348,1752891043750,-460.0,0.0001726,2]
[373176349,1752891043760,-460.0,0.0001726,2]
[373176350,1752891043769,-460.0,0.0001726,2]
[373176351,1752891043779,-975.58,0.0001726,2]
[373176352,1752891043789,-684.43,0.0001726,2]
[373176353,1752891043798,-460.0,0.0001726,2]
[373176354,1752891043807,-460.0,0.0001726,2]
[373176355,1752891043817,-460.0,0.0001726,2]
[373176356,1752891043827,-460.0,0.0001726,2]
[373176357,1752891043837,-460.0,0.0001726,2]
[373176358,1752891043847,-377.54185181,0.0001726,2]
[373176359,1752891043856,-463.54,0.0001726,2]
[373176360,1752891043865,-460.0,0.0001726,2]
[373176361,1752891043875,-460.0,0.0001726,2]
[373176362,1752891043884,-1345.1,0.0001726,2]
[373176363,1752891043894,-460.0,0.0001726,2]
[373176364,1752891043904,-1508.92,0.0001726,2]
[373176365,1752891043912,-460.0,0.0001726,2]
[373176366,1752891043921,-460.0,0.0001726,2]
[373176367,1752891043931,-460.0,0.0001726,2]
[373176368,1752891043945,-460.0,0.0001726,2]
[373176369,1752891043955,-464.55347186,0.0001726,2]
[373176370,1752891043965,-1125.78,0.0001726,2]
[373176371,1752891043975,-1027.2,0.0001726,2]
[373176372,1752891043985,-460.0,0.0001726,2]
[373176373,1752891043995,-460.0,0.0001726,2]
[373176374,1752891044004,-460.0,0.0001726,2]
[373176375,1752891044015,-460.0,0.0001726,2]
[373176376,1752891044025,-460.0,0.0001726,2]
[373176377,1752891044034,-460.0,0.0001726,2]
[373176378,1752891044044,-460.0,0.0001726,2]
[373176379,1752891044053,-460.0,0.0001726,2]
[373176380,1752891044063,-3077.67,0.0001726,2]
[373176381,1752891044072,-460.0,0.0001726,2]
[373176382,1752891044082,-660.48,0.0001726,2]
[373176383,1752891044092,-460.0,0.0001726,2]
[373176384,1752891044102,-500.0,0.000173,2]
[373176385,1752891044112,-185.87789923,0.00017315,3]
[373176386,1752891044121,-471.66974233,0.00017334,2]
[373176387,1752891044131,-500.0,0.00017334,2]
[373176388,1752891044140,-500.0,0.00017334,2]
[373176389,1752891044150,-500.0,0.00017334,2]
[373176390,1752891044164,-500.0,0.00017334,2]
[373176391,1752891044174,-508.26352206,0.00017334,2]
[373176392,1752891044184,-500.0,0.00017334,2]
[373176393,1752891044194,-502.25909635,0.00017334,2]
[373176394,1752891044205,-500.0,0.00017337,2]
[373176395,1752891044214,-502.5133173,0.00017348,2]
[373176396,1752891044224,-505.40972499,0.00017348,2]
[373176397,1752891044234,-1402.13,0.000174,2]
[373176398,1752891044243,-2276.00727322,0.00017521,2]
[373176399,1752891044253,-460.0,0.00017534,2]
[373176400,1752891044263,-241.23055279,0.00017534,2]
[373176401,1752891044272,-460.0,0.00017534,2]
[373176402,1752891044285,-467.58820547,0.00017534,2]
[373176403,1752891044295,-460.0,0.00017534,2]
[373176404,1752891044305,-472.85492437,0.00017534,2]
[373176405,1752891044315,-460.0,0.00017534,2]
[373176406,1752891044324,-460.0,0.00017534,2]
[373176407,1752891044335,-441.09735334,0.00017534,2]
[373176408,1752891044345,-460.0,0.00017534,2]
[373176409,1752891044354,-460.0,0.00017534,2]
[373176410,1752891044365,-460.0,0.00017534,2]
[373176411,1752891044374,-460.0,0.00017534,2]
[373176412,1752891044385,-460.0,0.00017534,2]
[373176413,1752891044395,-460.0,0.00017534,2]
[373176414,1752891044405,-460.0,0.00017534,2]
[373176415,1752891044415,-460.0,0.00017534,2]
[373176416,1752891044425,-460.0,0.00017534,2]
[373176417,1752891044437,-460.0,0.00017534,2]
[373176418,1752891044446,-460.0,0.00017534,2]
[373176419,1752891044456,-460.0,0.00017534,2]
[373176420,1752891044466,-460.0,0.00017534,2]
[373176421,1752891044476,-460.0,0.00017534,2]
[373176422,1752891044485,-460.0,0.00017534,2]
[373176423,1752891044495,-460.0,0.00017534,2]
[373176424,1752891044505,-460.0,0.00017534,2]
[373176425,1752891044514,-460.0,0.00017534,2]
[373176426,1752891044524,-460.0,0.00017534,2]
[373176427,1752891044533,-460.0,0.00017534,2]
[373176428,1752891044542,-460.0,0.00017534,2]
[373176429,1752891044551,-2770.43,0.00017534,2]
[373176430,1752891044560,-460.0,0.00017534,2]
[373176431,1752891044570,-1977.14,0.00017534,2]
[373176432,1752891044579,-345.82813616,0.00017534,2]
[373176433,1752891044589,-460.0,0.00017534,2]
[373176434,1752891044598,-460.0,0.00017534,2]
[373176435,1752891044608,-1102.41,0.00017534,2]
[373176436,1752891044617,-460.0,0.00017534,2]
[373176437,1752891044626,-533.53,0.00017534,2]
[373176438,1752891044636,-552.61,0.00017534,2]
[373176439,1752891044645,-460.0,0.00017534,2]
[373176440,1752891044654,-1676.17,0.00017534,2]
[373176441,1752891044663,-467.12,0.00017534,2]
[373176442,1752891044673,-460.0,0.00017534,2]
[373176443,1752891044682,-460.0,0.00017534,2]
[373176444,1752891044692,-864.43,0.00017534,2]
[373176445,1752891044702,-460.0,0.00017534,2]
[373176446,1752891044711,-247.66182512,0.00017534,2]
[373176447,1752891044720,-460.0,0.00017534,2]
[373176448,1752891044730,-1756.54,0.00017534,2]
[373176449,1752891044738,-460.0,0.00017534,2]
[373176450,1752891044748,-460.0,0.00017534,2]
[373176451,1752891044757,-1166.67,0.00017534,2]
[373176452,1752891044766,-460.0,0.00017534,2]
[373176453,1752891044776,-460.0,0.00017534,2]
[373176454,1752891044785,-1238.02,0.00017534,2]
[373176455,1752891044794,-460.0,0.00017534,2]
[373176456,1752891044803,-460.0,0.00017534,2]
[373176457,1752891044813,-460.0,0.00017534,2]
[373176458,1752891044822,-460.0,0.00017534,2]
[373176459,1752891044832,-460.0,0.00017534,2]
[373176460,1752891044841,-975.58,0.00017534,2]
[373176461,1752891044851,-684.43,0.00017534,2]
[373176462,1752891044861,-460.0,0.00017534,2]
[373176463,1752891044871,-460.0,0.00017534,2]
[373176464,1752891044880,-460.0,0.00017534,2]
[373176465,1752891044890,-460.0,0.00017534,2]
[373176466,1752891044899,-460.0,0.00017534,2]
[373176467,1752891044909,-463.54,0.00017534,2]
[373176468,1752891044918,-460.0,0.00017534,2]
[373176469,1752891044927,-460.0,0.00017534,2]
[373176470,1752891044940,-1345.1,0.00017534,2]
[373176471,1752891044951,-460.0,0.00017534,2]
[373176472,1752891044961,-1508.92,0.00017534,2]
[373176473,1752891044971,-460.0,0.00017534,2]
[373176474,1752891044982,-460.0,0.00017534,2]
[373176475,1752891044991,-460.0,0.00017534,2]
[373176476,1752891045001,-460.0,0.00017534,2]
[373176477,1752891045011,-1125.78,0.00017534,2]
[373176478,1752891045023,-1027.2,0.00017534,2]
[373176479,1752891045033,-460.0,0.00017534,2]
[373176480,1752891045043,-460.0,0.00017534,2]
[373176481,1752891045052,-460.0,0.00017534,2]
[373176482,1752891045062,-460.0,0.00017534,2]
[373176483,1752891045072,-460.0,0.00017534,2]
[373176484,1752891045081,-460.0,0.00017534,2]
[373176485,1752891045091,-460.0,0.00017534,2]
[373176486,1752891045100,-460.0,0.00017534,2]
[373176487,1752891045110,-3077.67,0.00017534,2]
[373176488,1752891045120,-460.0,0.00017534,2]
[373176489,1752891045130,-660.48,0.00017534,2]
[373176490,1752891045139,-460.0,0.00017534,2]
[373176491,1752891045149,-460.0,0.00017808,2]
[373176492,1752891045159,-460.0,0.00017808,2]
[373176493,1752891045169,-460.0,0.00017808,2]
[373176494,1752891045178,-460.0,0.00017808,2]
[373176495,1752891045190,-460.0,0.00017808,2]
[373176496,1752891045200,-460.0,0.00017808,2]
[373176497,1752891045209,-460.0,0.00017808,2]
[373176498,1752891045219,-460.0,0.00017808,2]
[373176499,1752891045229,-460.0,0.00017808,2]
[373176500,1752891045238,-559.81235858,0.00017808,2]
[373176501,1752891045248,-460.0,0.00017808,2]
[373176502,1752891045257,-265.14923213,0.00017808,2]
[373176503,1752891045267,-460.0,0.00017808,2]
[373176504,1752891045277,-460.0,0.00017808,2]
[373176505,1752891045286,-460.0,0.00017808,2]
[373176506,1752891045296,-460.0,0.00017808,2]
[373176507,1752891045306,-460.0,0.00017808,2]
[373176508,1752891045316,-460.0,0.00017808,2]
[373176509,1752891045326,-353.89058597,0.00017808,2]
[373176510,1752891045335,-460.0,0.00017808,2]
[373176511,1752891045345,-460.0,0.00017808,2]
[373176512,1752891045355,-460.0,0.00017808,2]
[373176513,1752891045365,-460.0,0.00017808,2]
[373176514,1752891045375,-2770.43,0.00017808,2]
[373176515,1752891045385,-460.0,0.00017808,2]
[373176516,1752891045395,-1977.14,0.00017808,2]
[373176517,1752891045404,-460.0,0.00017808,2]
[373176518,1752891045414,-1102.41,0.00017808,2]
[373176519,1752891045424,-460.0,0.00017808,2]
[373176520,1752891045436,-460.0,0.00017808,2]
[373176521,1752891045447,-533.53,0.00017808,2]
[373176522,1752891045457,-552.61,0.00017808,2]
[373176523,1752891045468,-460.0,0.00017808,2]
[373176524,1752891045478,-1676.17,0.00017808,2]
[373176525,1752891045488,-467.12,0.00017808,2]
[373176526,1752891045498,-460.0,0.00017808,2]
[373176527,1752891045508,-460.0,0.00017808,2]
[373176528,1752891045518,-864.43,0.00017808,2]
[373176529,1752891045528,-460.0,0.00017808,2]
[373176530,1752891045539,-460.0,0.00017808,2]
[373176531,1752891045549,-1756.54,0.00017808,2]
[373176532,1752891045559,-460.0,0.00017808,2]
[373176533,1752891045569,-460.0,0.00017808,2]
[373176534,1752891045578,-1166.67,0.00017808,2]
[373176535,1752891045589,-460.0,0.00017808,2]
[373176536,1752891045599,-460.0,0.00017808,2]
[373176537,1752891045609,-1238.02,0.00017808,2]
[373176538,1752891045619,-460.0,0.00017808,2]
[373176539,1752891045629,-460.0,0.00017808,2]
[373176540,1752891045639,-460.0,0.00017808,2]
[373176541,1752891045648,-460.0,0.00017808,2]
[373176542,1752891045659,-460.0,0.00017808,2]
[373176543,1752891045669,-975.58,0.00017808,2]
[373176544,1752891045680,-684.43,0.00017808,2]
[373176545,1752891045814,-460.0,0.00017808,2]
[373176546,1752891045823,-460.0,0.00017808,2]
[373176547,1752891045833,-460.0,0.00017808,2]
[373176548,1752891045842,-460.0,0.00017808,2]
[373176549,1752891045851,-460.0,0.00017808,2]
[373176550,1752891045861,-463.54,0.00017808,2]
[373176551,1752891045870,-460.0,0.00017808,2]
[373176552,1752891045879,-460.0,0.00017808,2]
[373176553,1752891045889,-1345.1,0.00017808,2]
[373176554,1752891045898,-460.0,0.00017808,2]
[373176555,1752891045908,-1508.92,0.00017808,2]
[373176556,1752891045917,-460.0,0.00017808,2]
[373176557,1752891045927,-460.0,0.00017808,2]
[373176558,1752891045940,-460.0,0.00017808,2]
[373176559,1752891045950,-460.0,0.00017808,2]
[373176560,1752891045960,-1125.78,0.00017808,2]
[373176561,1752891045969,-1027.2,0.00017808,2]
[373176562,1752891045979,-460.0,0.00017808,2]
[373176563,1752891045989,-460.0,0.00017808,2]
[373176564,1752891046002,-460.0,0.00017808,2]
[373176565,1752891046014,-320.58843696,0.00017808,2]
[373176566,1752891046023,-460.0,0.00017808,2]
[373176568,1752891046033,-460.0,0.00017808,2]
[373176570,1752891046042,-460.0,0.00017808,2]
[373176572,1752891046051,-460.0,0.00017808,2]
[373176574,1752891046061,-3077.67,0.00017808,2]
[373176576,1752891046070,-469.98334508,0.00017808,2]
[373176578,1752891046080,-660.48,0.00017808,2]
[373176580,1752891046089,-2276.00727322,0.00017831,2]
[373176581,1752891046098,-211.33368444,0.00017882,2]
[373176584,1752891046107,-504.22376068,0.00017882,2]
[373176586,1752891046117,-1000.0,0.00017882,2]
[373176587,1752891046127,-501.15649651,0.00017882,2]
[373176589,1752891046136,-411.94009619,0.00017882,2]
[373176592,1752891046146,-504.34069573,0.00017884,2]
[373176594,1752891046157,-1680.0,0.00017963,2]
[373176595,1752891046166,-334.9365324,0.00017963,2]
[373176597,1752891046175,-420.0,0.00017963,2]
[373176599,1752891046186,-160.0,0.00017986,2]
[373176601,1752891046195,-1361.42,0.00018072,3]
[373176603,1752891046204,-680.7,0.00018072,3]
[373176605,1752891046214,-340.36,0.00018072,3]
[373176607,1752891046223,-460.0,0.00018082,2]
[373176609,1752891046232,-460.0,0.00018082,2]
[373176610,1752891046241,-460.0,0.00018082,2]
[373176612,1752891046251,-460.0,0.00018082,2]
[373176614,1752891046260,-460.0,0.00018082,2]
[373176616,1752891046269,-460.0,0.00018082,2]
[373176617,1752891046278,-460.0,0.00018082,2]
[373176620,1752891046288,-460.0,0.00018082,2]
[373176622,1752891046298,-460.0,0.00018082,2]
[373176624,1752891046308,-460.0,0.00018082,2]
[373176625,1752891046317,-472.049229,0.00018082,2]
[373176627,1752891046326,-460.0,0.00018082,2]
[373176629,1752891046336,-460.0,0.00018082,2]
[373176631,1752891046346,-460.0,0.00018082,2]
[373176633,1752891046355,-460.0,0.00018082,2]
[373176635,1752891046364,-460.0,0.00018082,2]
[373176637,1752891046374,-460.0,0.00018082,2]
[373176639,1752891046383,-460.0,0.00018082,2]
[373176641,1752891046392,-460.0,0.00018082,2]
[373176643,1752891046402,-2770.43,0.00018082,2]